fUST/lending_fUST_20250704
["ID","MTS","AMOUNT","RATE_DAILY","PERIOD"]
[369376690,1751561442102,-460.0,0.00017259,2]
[369376692,1751561442111,-460.0,0.0001726,2]
[369376694,1751561442121,-460.0,0.0001726,2]
[369376697,1751561442131,-460.0,0.0001726,2]
[369376699,1751561442151,-460.0,0.0001726,2]
[369376701,1751561442168,-460.0,0.0001726,2]
[369376703,1751561442180,-460.0,0.0001726,2]
[369376705,1751561442191,-460.0,0.0001726,2]
[369376707,1751561442202,-460.0,0.0001726,2]
[369376709,1751561442213,-460.0,0.0001726,2]
[369376711,1751561442223,-460.0,0.0001726,2]
[369376713,1751561442235,-460.0,0.0001726,2]
[369376715,1751561442245,-460.0,0.0001726,2]
[369376717,1751561442256,-460.0,0.0001726,2]
[369376719,1751561442276,-460.0,0.0001726,2]
[369376721,1751561442286,-460.0,0.0001726,2]
[369376723,1751561442297,-460.0,0.0001726,2]
[369376725,1751561442308,-460.0,0.0001726,2]
[369376727,1751561442318,-1123.98,0.0001726,2]
[369376729,1751561442327,-460.0,0.0001726,2]
[369376731,1751561442336,-460.0,0.0001726,2]
[369376733,1751561442346,-460.0,0.0001726,2]
[369376734,1751561442355,-871.67,0.0001726,2]
[369376735,1751561442368,-2124.93,0.0001726,2]
[369376736,1751561442377,-460.0,0.0001726,2]
[369376737,1751561442386,-287.84,0.0001726,2]
[369376738,1751561442396,-2013.55,0.0001726,2]
[369376739,1751561442407,-460.0,0.0001726,2]
[369376740,1751561442417,-460.0,0.0001726,2]
[369376741,1751561442426,-460.0,0.0001726,2]
[369376742,1751561442436,-460.0,0.0001726,2]
[369376743,1751561442448,-460.0,0.0001726,2]
[369376744,1751561442458,-460.0,0.0001726,2]
[369376746,1751561442467,-460.0,0.0001726,2]
[369376747,1751561442476,-2085.08,0.0001726,2]
[369376748,1751561442485,-460.0,0.0001726,2]
[369376749,1751561442494,-460.0,0.0001726,2]
[369376751,1751561442504,-460.0,0.0001726,2]
[369376753,1751561442513,-460.0,0.0001726,2]
[369376754,1751561442522,-845.48,0.0001726,2]
[369376756,1751561442532,-460.0,0.0001726,2]
[369376758,1751561442541,-1961.92,0.0001726,2]
[369376760,1751561442550,-460.0,0.0001726,2]
[369376762,1751561442560,-460.0,0.0001726,2]
[369376765,1751561442570,-460.0,0.0001726,2]
[369376770,1751561442579,-610.3,0.0001726,2]
[369376773,1751561442588,-460.0,0.0001726,2]
[369376777,1751561442597,-460.0,0.0001726,2]
[369376781,1751561442606,-460.0,0.0001726,2]
[369376784,1751561442616,-460.0,0.0001726,2]
[369376786,1751561442626,-460.0,0.0001726,2]
[369376788,1751561442635,-1545.67,0.0001726,2]
[369376790,1751561442644,-460.0,0.0001726,2]
[369376792,1751561442653,-460.0,0.0001726,2]
[369376794,1751561442663,-460.0,0.0001726,2]
[369376796,1751561442672,-460.0,0.0001726,2]
[369376798,1751561442681,-460.0,0.0001726,2]
[369376800,1751561442690,-2143.33,0.0001726,2]
[369376802,1751561442700,-460.0,0.0001726,2]
[369376804,1751561442710,-460.0,0.0001726,2]
[369376806,1751561442719,-460.0,0.0001726,2]
[369376808,1751561442730,-460.0,0.0001726,2]
[369376810,1751561442739,-460.0,0.0001726,2]
[369376812,1751561442749,-460.0,0.0001726,2]
[369376814,1751561442759,-460.0,0.0001726,2]
[369376817,1751561442768,-460.0,0.0001726,2]
[369376819,1751561442777,-1020.94,0.0001726,2]
[369376821,1751561442787,-460.0,0.0001726,2]
[369376823,1751561442796,-250.0,0.00017289,2]
[369376825,1751561442806,-250.0,0.00017328,2]
[369376827,1751561442815,-250.0,0.00017368,2]
[369376829,1751561442824,-500.0,0.00017369,2]
[369376831,1751561442833,-1000.0,0.00017369,2]
[369376833,1751561442843,-1000.0,0.00017404,2]
[369376835,1751561442852,-250.0,0.00017407,2]
[369376837,1751561442862,-250.0,0.00017447,2]
[369376839,1751561442877,-250.0,0.00017486,2]
[369376841,1751561442889,-1022.31,0.000175,2]
[369376843,1751561442899,-250.0,0.00017526,2]
[369376845,1751561442908,-460.0,0.00017533,2]
[369376847,1751561442918,-460.0,0.00017533,2]
[369376849,1751561442927,-460.0,0.00017533,2]
[369376851,1751561442938,-460.0,0.00017533,2]
[369376853,1751561442947,-460.0,0.00017533,2]
[369376856,1751561442957,-460.0,0.00017533,2]
[369376858,1751561442967,-460.0,0.00017533,2]
[369376859,1751561442976,-460.0,0.00017533,2]
[369376861,1751561442985,-460.0,0.00017533,2]
[369376863,1751561442995,-460.0,0.00017533,2]
[369376865,1751561443004,-460.0,0.00017533,2]
[369376867,1751561443013,-3885.95,0.00017533,2]
[369376870,1751561443023,-893.53,0.00017533,2]
[369376871,1751561443032,-460.0,0.00017533,2]
[369376873,1751561443041,-891.77,0.00017533,2]
[369376875,1751561443050,-460.0,0.00017533,2]
[369376877,1751561443059,-460.0,0.00017534,2]
[369376879,1751561443069,-460.0,0.00017534,2]
[369376881,1751561443079,-460.0,0.00017534,2]
[369376883,1751561443088,-460.0,0.00017534,2]
[369376885,1751561443097,-460.0,0.00017534,2]
[369376887,1751561443108,-460.0,0.00017534,2]
[369376889,1751561443117,-460.0,0.00017534,2]
[369376891,1751561443126,-460.0,0.00017534,2]
[369376893,1751561443135,-460.0,0.00017534,2]
[369376895,1751561443145,-460.0,0.00017534,2]
[369376897,1751561443154,-460.0,0.00017534,2]
[369376899,1751561443163,-609.36,0.00017534,2]
[369376901,1751561443174,-460.0,0.00017534,2]
[369376903,1751561443183,-460.0,0.00017534,2]
[369376905,1751561443192,-426.50838116,0.00017534,2]
[369376907,1751561443201,-1123.98,0.00017534,2]
[369376909,1751561443210,-460.0,0.00017534,2]
[369376911,1751561443219,-460.0,0.00017534,2]
[369376915,1751561443228,-460.0,0.00017534,2]
[369376917,1751561443237,-871.67,0.00017534,2]
[369376919,1751561443246,-2124.93,0.00017534,2]
[369376921,1751561443255,-460.0,0.00017534,2]
[369376923,1751561443264,-2013.55,0.00017534,2]
[369376925,1751561443273,-460.0,0.00017534,2]
[369376927,1751561443282,-460.0,0.00017534,2]
[369376929,1751561443292,-460.0,0.00017534,2]
[369376931,1751561443301,-460.0,0.00017534,2]
[369376933,1751561443311,-460.0,0.00017534,2]
[369376935,1751561443319,-460.0,0.00017534,2]
[369376937,1751561443329,-2085.08,0.00017534,2]
[369376939,1751561443338,-460.0,0.00017534,2]
[369376940,1751561443348,-460.0,0.00017534,2]
[369376942,1751561443358,-460.0,0.00017534,2]
[369376945,1751561443372,-845.48,0.00017534,2]
[369376947,1751561443381,-460.0,0.00017534,2]
[369376949,1751561443390,-1961.92,0.00017534,2]
[369376951,1751561443400,-460.0,0.00017534,2]
[369376953,1751561443409,-460.0,0.00017534,2]
[369376955,1751561443418,-460.0,0.00017534,2]
[369376957,1751561443426,-610.3,0.00017534,2]
[369376959,1751561443436,-460.0,0.00017534,2]
[369376961,1751561443446,-460.0,0.00017534,2]
[369376963,1751561443454,-460.0,0.00017534,2]
[369376965,1751561443462,-460.0,0.00017534,2]
[369376967,1751561443471,-1545.67,0.00017534,2]
[369376969,1751561443480,-460.0,0.00017534,2]
[369376971,1751561443489,-460.0,0.00017534,2]
[369376973,1751561443498,-460.0,0.00017534,2]
[369376975,1751561443507,-460.0,0.00017534,2]
[369376977,1751561443516,-460.0,0.00017534,2]
[369376979,1751561443526,-2143.33,0.00017534,2]
[369376981,1751561443534,-460.0,0.00017534,2]
[369376983,1751561443544,-460.0,0.00017534,2]
[369376985,1751561443553,-285.89751404,0.00017534,2]
[369376987,1751561443562,-460.0,0.00017534,2]
[369376989,1751561443571,-460.0,0.00017534,2]
[369376991,1751561443580,-460.0,0.00017534,2]
[369376993,1751561443589,-460.0,0.00017534,2]
[369376995,1751561443598,-460.0,0.00017534,2]
[369376997,1751561443607,-1020.94,0.00017534,2]
[369376999,1751561443618,-460.0,0.00017534,2]
[369377001,1751561443628,-250.0,0.00017566,2]
[369377003,1751561443637,-250.0,0.00017605,2]
[369377005,1751561443646,-250.0,0.00017645,2]
[369377008,1751561443660,-250.0,0.00017684,2]
[369377010,1751561443669,-250.0,0.00017724,2]
[369377012,1751561443677,-250.0,0.00017763,2]
[369377014,1751561443687,-250.0,0.00017803,2]
[369377016,1751561443696,-460.0,0.00017807,2]
[369377018,1751561443705,-460.0,0.00017807,2]
[369377019,1751561443714,-460.0,0.00017807,2]
[369377021,1751561443723,-460.0,0.00017807,2]
[369377023,1751561443732,-460.0,0.00017807,2]
[369377025,1751561443741,-460.0,0.00017807,2]
[369377027,1751561443751,-460.0,0.00017807,2]
[369377029,1751561443760,-366.64,0.00017807,2]
[369377032,1751561443773,-460.0,0.00017807,2]
[369377034,1751561443782,-460.0,0.00017807,2]
[369377036,1751561443791,-305.2,0.00017807,2]
[369377038,1751561443801,-3885.95,0.00017807,2]
[369377040,1751561443810,-893.53,0.00017807,2]
[369377042,1751561443820,-891.77,0.00017807,2]
[369377044,1751561443830,-460.0,0.00017807,2]
[369377046,1751561443839,-283.568825,0.00017808,2]
[369377048,1751561443848,-460.0,0.00017808,2]
[369377050,1751561443858,-153.28,0.00017808,2]
[369377064,1751561443981,-460.0,0.00017808,2]
[369377066,1751561443991,-460.0,0.00017808,2]
[369377068,1751561444001,-460.0,0.00017808,2]
[369377070,1751561444010,-362.78262875,0.00017808,2]
[369377072,1751561444021,-460.0,0.00017808,2]
[369377074,1751561444031,-460.0,0.00017808,2]
[369377076,1751561444041,-460.0,0.00017808,2]
[369377078,1751561444051,-460.0,0.00017808,2]
[369377080,1751561444060,-460.0,0.00017808,2]
[369377083,1751561444071,-1123.98,0.00017808,2]
[369377085,1751561444081,-460.0,0.00017808,2]
[369377087,1751561444091,-460.0,0.00017808,2]
[369377088,1751561444102,-460.0,0.00017808,2]
[369377091,1751561444113,-871.67,0.00017808,2]
[369377093,1751561444122,-2124.93,0.00017808,2]
[369377095,1751561444132,-460.0,0.00017808,2]
[369377097,1751561444141,-2013.55,0.00017808,2]
[369377099,1751561444151,-460.0,0.00017808,2]
[369377101,1751561444161,-460.0,0.00017808,2]
[369377103,1751561444171,-460.0,0.00017808,2]
[369377105,1751561444180,-460.0,0.00017808,2]
[369377106,1751561444190,-584.96274023,0.00017808,2]
[369377108,1751561444200,-460.0,0.00017808,2]
[369377110,1751561444209,-2085.08,0.00017808,2]
[369377112,1751561444218,-460.0,0.00017808,2]
[369377114,1751561444227,-460.0,0.00017808,2]
[369377116,1751561444236,-460.0,0.00017808,2]
[369377118,1751561444246,-845.48,0.00017808,2]
[369377120,1751561444257,-460.0,0.00017808,2]
[369377122,1751561444266,-1961.92,0.00017808,2]
[369377124,1751561444275,-460.0,0.00017808,2]
[369377126,1751561444284,-460.0,0.00017808,2]
[369377128,1751561444293,-460.0,0.00017808,2]
[369377130,1751561444302,-610.3,0.00017808,2]
[369377132,1751561444311,-460.0,0.00017808,2]
[369377134,1751561444321,-460.0,0.00017808,2]
[369377136,1751561444330,-460.0,0.00017808,2]
[369377138,1751561444339,-1545.67,0.00017808,2]
[369377140,1751561444349,-460.0,0.00017808,2]
[369377142,1751561444358,-157.85461952,0.00017808,2]
[369377145,1751561444373,-460.0,0.00017808,2]
[369377147,1751561444382,-460.0,0.00017808,2]
[369377149,1751561444393,-460.0,0.00017808,2]
[369377151,1751561444403,-460.0,0.00017808,2]
[369377153,1751561444413,-2143.33,0.00017808,2]
[369377155,1751561444422,-460.0,0.00017808,2]
[369377157,1751561444431,-460.0,0.00017808,2]
[369377159,1751561444440,-460.0,0.00017808,2]
[369377161,1751561444449,-460.0,0.00017808,2]
[369377163,1751561444458,-460.0,0.00017808,2]
[369377165,1751561444467,-460.0,0.00017808,2]
[369377167,1751561444476,-460.0,0.00017808,2]
[369377169,1751561444486,-1020.94,0.00017808,2]
[369377170,1751561444495,-460.0,0.00017808,2]
[369377172,1751561444504,-250.0,0.00017842,2]
[369377174,1751561444514,-250.0,0.00017882,2]
[369377176,1751561444523,-1500.0,0.00017917,2]
[369377178,1751561444532,-250.0,0.00017922,2]
[369377181,1751561444542,-1000.0,0.00017952,2]
[369377183,1751561444551,-250.0,0.00017961,2]
[369377185,1751561444560,-250.0,0.00018001,2]
[369377187,1751561444570,-250.0,0.0001804,2]
[369377189,1751561444579,-460.0,0.00018081,2]
[369377191,1751561444588,-460.0,0.00018081,2]
[369377193,1751561444597,-460.0,0.00018081,2]
[369377195,1751561444606,-460.0,0.00018081,2]
[369377197,1751561444616,-460.0,0.00018081,2]
[369377199,1751561444625,-460.0,0.00018081,2]
[369377201,1751561444634,-460.0,0.00018081,2]
[369377203,1751561444643,-460.0,0.00018081,2]
[369377205,1751561444652,-460.0,0.00018081,2]
[369377207,1751561444662,-3885.95,0.00018081,2]
[369377209,1751561444671,-893.53,0.00018081,2]
[369377210,1751561444680,-891.77,0.00018081,2]
[369377213,1751561444690,-460.0,0.00018081,2]
[369377215,1751561444700,-460.0,0.00018082,2]
[369377217,1751561444709,-460.0,0.00018082,2]
[369377219,1751561444718,-460.0,0.00018082,2]
[369377221,1751561444728,-460.0,0.00018082,2]
[369377222,1751561444737,-460.0,0.00018082,2]
[369377223,1751561444746,-460.0,0.00018082,2]
[369377224,1751561444755,-174.88,0.00018082,2]
[369377225,1751561444764,-460.0,0.00018082,2]
[369377226,1751561444773,-1123.98,0.00018082,2]
[369377227,1751561444782,-460.0,0.00018082,2]
[369377228,1751561444791,-460.0,0.00018082,2]
[369377229,1751561444800,-460.0,0.00018082,2]
[369377230,1751561444809,-871.67,0.00018082,2]
[369377231,1751561444817,-2124.93,0.00018082,2]
[369377232,1751561444826,-460.0,0.00018082,2]
[369377233,1751561444835,-2013.55,0.00018082,2]
[369377234,1751561444844,-460.0,0.00018082,2]
[369377235,1751561444853,-460.0,0.00018082,2]
[369377236,1751561444862,-460.0,0.00018082,2]
[369377237,1751561444871,-402.73,0.00018082,2]
[369377238,1751561444880,-460.0,0.00018082,2]
[369377239,1751561444890,-2085.08,0.00018082,2]
[369377240,1751561444900,-489.69,0.00018082,2]
[369377241,1751561444909,-460.0,0.00018082,2]
[369377242,1751561444918,-460.0,0.00018082,2]
[369377243,1751561444927,-845.48,0.00018082,2]
[369377244,1751561444936,-460.0,0.00018082,2]
[369377245,1751561444945,-1961.92,0.00018082,2]
[369377246,1751561444954,-460.0,0.00018082,2]
[369377247,1751561444962,-460.0,0.00018082,2]
[369377248,1751561444971,-460.0,0.00018082,2]
[369377249,1751561444981,-610.3,0.00018082,2]
[369377250,1751561444990,-460.0,0.00018082,2]
[369377251,1751561444999,-460.0,0.00018082,2]
[369377252,1751561445008,-460.0,0.00018082,2]
[369377253,1751561445017,-1545.67,0.00018082,2]
[369377254,1751561445026,-460.0,0.00018082,2]
[369377255,1751561445035,-460.0,0.00018082,2]
[369377256,1751561445044,-460.0,0.00018082,2]
[369377257,1751561445053,-460.0,0.00018082,2]
[369377258,1751561445062,-460.0,0.00018082,2]
[369377259,1751561445071,-2143.33,0.00018082,2]
[369377260,1751561445083,-460.0,0.00018082,2]
[369377262,1751561445092,-460.0,0.00018082,2]
[369377264,1751561445101,-460.0,0.00018082,2]
[369377266,1751561445111,-460.0,0.00018082,2]
[369377268,1751561445125,-460.0,0.00018082,2]
[369377271,1751561445139,-460.0,0.00018082,2]
[369377273,1751561445153,-460.0,0.00018082,2]
[369377276,1751561445167,-1020.94,0.00018082,2]
[369377278,1751561445177,-460.0,0.00018082,2]
[369377280,1751561445189,-587.0,0.00018237,2]
[369377283,1751561445201,-460.0,0.00018355,2]
[369377285,1751561445212,-460.0,0.00018355,2]
[369377287,1751561445225,-460.0,0.00018355,2]
[369377290,1751561445238,-460.0,0.00018355,2]
[369377292,1751561445251,-460.0,0.00018355,2]
[369377295,1751561445264,-460.0,0.00018355,2]
[369377297,1751561445278,-460.0,0.00018355,2]
[369377299,1751561445291,-460.0,0.00018355,2]
[369377302,1751561445303,-460.0,0.00018355,2]
[369377304,1751561445315,-3885.95,0.00018355,2]
[369377306,1751561445328,-893.53,0.00018355,2]
[369377308,1751561445340,-891.77,0.00018355,2]
[369377311,1751561445355,-460.0,0.00018355,2]
[369377313,1751561445369,-460.0,0.00018356,2]
[369377315,1751561445381,-460.0,0.00018356,2]
[369377317,1751561445392,-460.0,0.00018356,2]
[369377320,1751561445403,-460.0,0.00018356,2]
[369377322,1751561445416,-460.0,0.00018356,2]
[369377324,1751561445427,-460.0,0.00018356,2]
[369377327,1751561445441,-1123.98,0.00018356,2]
[369377329,1751561445455,-460.0,0.00018356,2]
[369377331,1751561445468,-460.0,0.00018356,2]
[369377334,1751561445481,-460.0,0.00018356,2]
[369377336,1751561445495,-871.67,0.00018356,2]
[369377339,1751561445508,-2124.93,0.00018356,2]
[369377341,1751561445521,-460.0,0.00018356,2]
[369377343,1751561445534,-2013.55,0.00018356,2]
[369377345,1751561445544,-607.48,0.00018356,2]
[369377347,1751561445554,-460.0,0.00018356,2]
[369377351,1751561445565,-460.0,0.00018356,2]
[369377353,1751561445578,-460.0,0.00018356,2]
[369377356,1751561445593,-2085.08,0.00018356,2]
[369377358,1751561445606,-460.0,0.00018356,2]
[369377360,1751561445616,-460.0,0.00018356,2]
[369377362,1751561445627,-845.48,0.00018356,2]
[369377364,1751561445639,-460.0,0.00018356,2]
[369377367,1751561445651,-1961.92,0.00018356,2]
[369377369,1751561445664,-460.0,0.00018356,2]
[369377371,1751561445676,-460.0,0.00018356,2]
[369377373,1751561445687,-610.3,0.00018356,2]
[369377376,1751561445697,-227.02,0.00018356,2]
[369377378,1751561445709,-460.0,0.00018356,2]
[369377380,1751561445720,-460.0,0.00018356,2]
[369377382,1751561445732,-1545.67,0.00018356,2]
[369377384,1751561445743,-460.0,0.00018356,2]
[369377387,1751561445755,-460.0,0.00018356,2]
[369377389,1751561445767,-460.0,0.00018356,2]
[369377391,1751561445779,-460.0,0.00018356,2]
[369377393,1751561445790,-460.0,0.00018356,2]
[369377395,1751561445802,-2143.33,0.00018356,2]
[369377398,1751561445813,-460.0,0.00018356,2]
[369377400,1751561445824,-460.0,0.00018356,2]
[369377402,1751561445836,-460.0,0.00018356,2]
[369377404,1751561445847,-460.0,0.00018356,2]
[369377407,1751561445859,-460.0,0.00018356,2]
[369377409,1751561445871,-599.8,0.00018356,2]
[369377411,1751561445882,-460.0,0.00018356,2]
[369377413,1751561445894,-1020.94,0.00018356,2]
[369377415,1751561445905,-555.57532529,0.00018356,2]
[369377417,1751561445916,-2460.83097615,0.00018463,2]
[369377419,1751561445928,-160.0,0.00018463,2]
[369377422,1751561445940,-160.0,0.00018463,2]
[369377424,1751561445952,-12575.98004106,0.00018463,2]
[369377426,1751561445964,-160.0,0.00018463,2]
[369377428,1751561445975,-160.0,0.00018463,2]
[369377431,1751561445988,-837.389109,0.00018463,2]
[369377433,1751561445999,-847.79783075,0.00018463,2]
[369377435,1751561446011,-160.0,0.00018463,2]
[369377437,1751561446023,-160.0,0.00018463,2]
[369377440,1751561446034,-160.0,0.00018463,2]
[369377442,1751561446044,-230.37558374,0.00018463,2]
[369377444,1751561446055,-213.94585247,0.00018463,2]
[369377446,1751561446066,-215.07701991,0.00018463,2]
[369377449,1751561446077,-160.0,0.00018463,2]
[369377453,1751561446088,-2000.0,0.00018465,2]
[369377456,1751561446100,-1446.68549727,0.00018468,2]
[369377459,1751561446112,-467.75332533,0.00018473,2]
[369377462,1751561446123,-151.0,0.000185,2]
[369377464,1751561446135,-460.0,0.00018629,2]
[369377467,1751561446146,-460.0,0.00018629,2]
[369377469,1751561446158,-337.12,0.00018629,2]
[369377471,1751561446172,-460.0,0.00018629,2]
[369377473,1751561446184,-460.0,0.00018629,2]
[369377475,1751561446195,-460.0,0.00018629,2]
[369377477,1751561446206,-460.0,0.00018629,2]
[369377479,1751561446218,-3885.95,0.00018629,2]
[369377482,1751561446229,-893.53,0.00018629,2]
[369377484,1751561446240,-460.0,0.00018629,2]
[369377486,1751561446252,-891.77,0.00018629,2]
[369377488,1751561446263,-4642.52096105,0.0001863,2]
[369377491,1751561446274,-460.0,0.0001863,2]
[369377493,1751561446285,-460.0,0.0001863,2]
[369377495,1751561446296,-460.0,0.0001863,2]
[369377497,1751561446308,-237.1,0.0001863,2]
[369377499,1751561446319,-460.0,0.0001863,2]
[369377502,1751561446331,-460.0,0.0001863,2]
[369377504,1751561446342,-1123.98,0.0001863,2]
[369377506,1751561446354,-428.67,0.0001863,2]
[369377508,1751561446368,-460.0,0.0001863,2]
[369377510,1751561446379,-460.0,0.0001863,2]
[369377512,1751561446391,-871.67,0.0001863,2]
[369377515,1751561446403,-2124.93,0.0001863,2]
[369377517,1751561446414,-252.58,0.0001863,2]
[369377519,1751561446425,-2013.55,0.0001863,2]
[369377521,1751561446437,-460.0,0.0001863,2]
[369377523,1751561446448,-460.0,0.0001863,2]
[369377525,1751561446457,-460.0,0.0001863,2]
[369377527,1751561446466,-2085.08,0.0001863,2]
[369377529,1751561446476,-460.0,0.0001863,2]
[369377531,1751561446485,-264.83,0.0001863,2]
[369377533,1751561446494,-845.48,0.0001863,2]
[369377535,1751561446503,-460.0,0.0001863,2]
[369377537,1751561446513,-1961.92,0.0001863,2]
[369377558,1751561446704,-460.0,0.0001863,2]
[369377561,1751561446722,-460.0,0.0001863,2]
[369377564,1751561446742,-610.3,0.0001863,2]
[369377566,1751561446751,-419.66,0.0001863,2]
[369377568,1751561446761,-1545.67,0.0001863,2]
[369377570,1751561446770,-347.32,0.0001863,2]
[369377572,1751561446780,-460.0,0.0001863,2]
[369377574,1751561446789,-460.0,0.0001863,2]
[369377576,1751561446799,-460.0,0.0001863,2]
[369377578,1751561446808,-2143.33,0.0001863,2]
[369377580,1751561446817,-460.0,0.0001863,2]
[369377582,1751561446827,-460.0,0.0001863,2]
[369377584,1751561446836,-460.0,0.0001863,2]
[369377586,1751561446845,-321.48,0.0001863,2]
[369377588,1751561446855,-460.0,0.0001863,2]
[369377590,1751561446864,-460.0,0.0001863,2]
[369377592,1751561446873,-1020.94,0.0001863,2]
[369377594,1751561446884,-460.0,0.00018903,2]
[369377596,1751561446893,-460.0,0.00018903,2]
[369377598,1751561446902,-460.0,0.00018903,2]
[369377600,1751561446912,-460.0,0.00018903,2]
[369377602,1751561446921,-460.0,0.00018903,2]
[369377604,1751561446930,-460.0,0.00018903,2]
[369377606,1751561446939,-3885.95,0.00018903,2]
[369377608,1751561446949,-893.53,0.00018903,2]
[369377610,1751561446958,-460.0,0.00018903,2]
[369377612,1751561446968,-891.77,0.00018903,2]
[369377614,1751561446977,-460.0,0.00018904,2]
[369377616,1751561446986,-460.0,0.00018904,2]
[369377618,1751561446995,-460.0,0.00018904,2]
[369377620,1751561447004,-460.0,0.00018904,2]
[369377622,1751561447014,-460.0,0.00018904,2]
[369377624,1751561447023,-1123.98,0.00018904,2]
[369377626,1751561447032,-592.68,0.00018904,2]
[369377628,1751561447042,-460.0,0.00018904,2]
[369377630,1751561447051,-871.67,0.00018904,2]
[369377632,1751561447060,-2124.93,0.00018904,2]
[369377634,1751561447069,-2013.55,0.00018904,2]
[369377636,1751561447078,-460.0,0.00018904,2]
[369377638,1751561447087,-460.0,0.00018904,2]
[369377640,1751561447097,-460.0,0.00018904,2]
[369377642,1751561447106,-2085.08,0.00018904,2]
[369377644,1751561447116,-460.0,0.00018904,2]
[369377646,1751561447125,-845.48,0.00018904,2]
[369377648,1751561447135,-460.0,0.00018904,2]
[369377650,1751561447144,-1961.92,0.00018904,2]
[369377652,1751561447154,-470.64,0.00018904,2]
[369377654,1751561447163,-460.0,0.00018904,2]
[369377656,1751561447172,-610.3,0.00018904,2]
[369377658,1751561447182,-1545.67,0.00018904,2]
[369377660,1751561447192,-460.0,0.00018904,2]
[369377662,1751561447202,-460.0,0.00018904,2]
[369377663,1751561447212,-460.0,0.00018904,2]
[369377666,1751561447222,-2143.33,0.00018904,2]
[369377667,1751561447233,-460.0,0.00018904,2]
[369377670,1751561447242,-460.0,0.00018904,2]
[369377672,1751561447254,-460.0,0.00018904,2]
[369377674,1751561447263,-460.0,0.00018904,2]
[369377676,1751561447273,-460.0,0.00018904,2]
[369377678,1751561447282,-1020.94,0.00018904,2]
[369377680,1751561447291,-151.0,0.00019,2]
[369377682,1751561447300,-2500.0,0.00019013,2]
[369377683,1751561447309,-460.0,0.00019177,2]
[369377686,1751561447319,-316.16,0.00019177,2]
[369377687,1751561447328,-460.0,0.00019177,2]
[369377689,1751561447337,-460.0,0.00019177,2]
[369377691,1751561447346,-460.0,0.00019177,2]
[369377693,1751561447356,-460.0,0.00019177,2]
[369377695,1751561447368,-3885.95,0.00019177,2]
[369377697,1751561447378,-893.53,0.00019177,2]
[369377699,1751561447387,-460.0,0.00019177,2]
[369377700,1751561447396,-891.77,0.00019177,2]
[369377701,1751561447406,-460.0,0.00019178,2]
[369377702,1751561447415,-411.09,0.00019178,2]
[369377703,1751561447424,-460.0,0.00019178,2]
[369377704,1751561447434,-219.36,0.00019178,2]
[369377705,1751561447443,-239.77186916,0.00019178,2]
[369377706,1751561447453,-1123.98,0.00019178,2]
[369377707,1751561447462,-460.0,0.00019178,2]